fUSD/lending_fUSD_20240102
["ID","MTS","AMOUNT","RATE_DAILY","PERIOD"]
[309961673,1704237032441,-155.0,0.00022998,2]
[309961674,1704237032451,-1132.69066522,0.00022999,2]
[309961675,1704237032460,-155.21834346,0.00022999,2]
[309961676,1704237032470,-242.64035737,0.00022999,2]
[309961677,1704237032481,-162.16059053,0.00022999,2]
[309961678,1704237032491,-641.78982155,0.00022999,2]
[309961679,1704237032500,-173.99131297,0.00022999,2]
[309961681,1704237032509,-3817.14199494,0.00022999,2]
[309961683,1704237032518,-155.58556503,0.00022999,2]
[309961685,1704237032528,-500.0,0.00022999,4]
[309961687,1704237032537,-500.0,0.00022999,4]
[309961689,1704237032547,-500.0,0.00022999,4]
[309961691,1704237032557,-295.10709579,0.00022999,4]
[309961693,1704237032567,-500.0,0.00022999,4]
[309961695,1704237032576,-500.0,0.00022999,4]
[309961697,1704237032586,-500.0,0.00022999,4]
[309961699,1704237032596,-500.0,0.00022999,4]
[309961701,1704237032605,-500.0,0.00022999,4]
[309961703,1704237032615,-500.0,0.00022999,4]
[309961705,1704237032625,-500.0,0.00022999,4]
[309961707,1704237032634,-500.0,0.00022999,4]
[309961709,1704237032644,-500.0,0.00022999,4]
[309961711,1704237032654,-500.0,0.00022999,4]
[309961713,1704237032663,-500.0,0.00022999,4]
[309961715,1704237032672,-500.0,0.00022999,4]
[309961717,1704237032682,-500.0,0.00022999,4]
[309961719,1704237032691,-500.0,0.00022999,4]
[309961721,1704237032701,-500.0,0.00022999,4]
[309961723,1704237032710,-500.0,0.00022999,4]
[309961725,1704237032720,-500.0,0.00022999,4]
[309961727,1704237032729,-500.0,0.00022999,4]
[309961729,1704237032738,-500.0,0.00022999,4]
[309961731,1704237032747,-500.0,0.00022999,4]
[309961733,1704237032757,-500.0,0.00022999,4]
[309961735,1704237032766,-500.0,0.00022999,4]
[309961736,1704237032775,-500.0,0.00022999,4]
[309961737,1704237032784,-500.0,0.00022999,4]
[309961738,1704237032794,-500.0,0.00022999,4]
[309961739,1704237032804,-500.0,0.00022999,4]
[309961740,1704237032813,-600.0,0.00022999,4]
[309961741,1704237032822,-500.0,0.00022999,4]
[309961742,1704237032832,-500.0,0.00022999,4]
[309961743,1704237032842,-16705.41348277,0.00023,2]
[309961744,1704237032855,-22502.35819259,0.00023,2]
[309961745,1704237032868,-2067.05,0.00023,2]
[309961746,1704237032880,-979.38,0.00023,2]
[309961747,1704237032901,-299.42368159,0.00023,2]
[309961748,1704237032918,-2550.0,0.00023,2]
[309961749,1704237032930,-464.9862939,0.00023,2]
[309961750,1704237032942,-300.0,0.00023,2]
[309961751,1704237032970,-3918.03114283,0.00023,2]
[309961752,1704237032983,-5463.37093932,0.00023,2]
[309961753,1704237032994,-1663.662,0.00023,2]
[309961754,1704237033010,-405.83924416,0.00023,2]
[309961755,1704237033022,-350.0,0.00023,2]
[309961756,1704237033033,-955.35774204,0.00023,2]
[309961760,1704237038283,-477.89908188,0.000229,2]
[309961761,1704237038294,-896.76007473,0.00023,2]
[309961762,1704237038337,-13545.89292762,0.00023,2]
[309961763,1704237038351,-1450.75362346,0.00023,2]
[309961764,1704237038389,-973.467,0.00023,2]
[309961765,1704237038401,-300.0,0.00023,2]
[309961766,1704237038413,-3273.02500605,0.00023,2]
[309961767,1704237038426,-339.12938661,0.00023,2]
[309961768,1704237038497,-14122.39214895,0.00023,2]
[309961769,1704237038551,-839681.65945841,0.00023,2]
[309961770,1704237038564,-269740.58611059,0.00023,2]
[309961771,1704237038657,-1938.57260015,0.00023,2]
[309961793,1704237040771,-39529.68375239,0.00023,2]
[309961794,1704237041674,-664.34514018,0.00023,2]
[309961809,1704237043264,-409.77409583,0.00023,2]
[309961824,1704237046269,-1018935.69188698,0.00023,2]
[309961825,1704237046280,-512.6399146,0.00023,2]
[309961826,1704237046295,-1310.29271254,0.00023,2]
[309961827,1704237046307,-3264.39349923,0.00023,2]
[309961828,1704237046319,-12096.52501259,0.00023,2]
[309961829,1704237046389,-722.38041383,0.00023,2]
[309961830,1704237046400,-3588.70815769,0.00023,2]
[309961831,1704237046412,-6905.76292597,0.00023,2]
[309961832,1704237046423,-3663.84280583,0.00023,2]
[309961835,1704237079893,150.0,0.00022,2]
[309961836,1704237085111,150.0,0.00022,2]
[309961837,1704237085135,1.83132911,0.00022,2]
[309961838,1704237141297,150.0,0.00022,2]
[309961839,1704237141320,150.0,0.00022,2]
[309961840,1704237141344,150.0,0.00022,2]
[309961841,1704237141365,150.0,0.00022,2]
[309961842,1704237141386,150.0,0.00022,2]
[309961843,1704237141406,150.0,0.00022,2]
[309961844,1704237141426,150.0,0.00022,2]
[309961845,1704237141448,150.0,0.00022,2]
[309961846,1704237141469,150.0,0.00022,2]
[309961847,1704237141493,150.0,0.00022,2]
[309961848,1704237141515,150.0,0.00022,2]
[309961849,1704237141537,150.0,0.00022,2]
[309961850,1704237141558,150.0,0.00022,2]
[309961851,1704237141581,150.0,0.00022,2]
[309961852,1704237141603,150.0,0.00022,2]
[309961853,1704237141623,150.0,0.00022,2]
[309961854,1704237141645,150.0,0.00022,2]
[309961855,1704237141670,150.0,0.00022,2]
[309961856,1704237141695,150.0,0.00022,2]
[309961857,1704237141716,150.0,0.00022,2]
[309961858,1704237141737,150.0,0.00022,2]
[309961859,1704237141762,150.0,0.00022,2]
[309961860,1704237141784,294.87317691,0.00022,2]
[309961861,1704237141809,26277.62162864,0.00022,2]
[309961862,1704237147173,558.42453916,0.00020379,2]
[309961863,1704237152786,716.07664885,0.00022,2]
[309961864,1704237156795,446.07489463,0.00020379,2]
[309961865,1704237159462,1120.72569372,0.00022,2]
[309961866,1704237161732,727.07567005,0.00021,2]
[309961867,1704237166747,155.21988042,0.00020608,2]
[309961868,1704237174655,299.89406529,0.00020379,2]
[309961869,1704237181725,851.74534199,0.00021,2]
[309961870,1704237381913,443.4,0.00022224,2]
[309961871,1704237412083,500.0,0.00022264,2]
[309961872,1704237422791,364.02,0.00022224,2]
[309961873,1704237460619,168.95,0.00022192,2]
[309961874,1704237461412,179.63,0.00022192,2]
[309961875,1704237476139,175.7,0.00022269,2]
[309961876,1704237502644,2000.0,0.0002219,2]
[309961877,1704237538995,200.0,0.0002219,2]
[309961878,1704237543682,628.56,0.00020272,2]
[309961879,1704237611445,186.82,0.0002219,2]
[309961880,1704237630392,208.116143,0.00022466,2]
[309961881,1704237755533,692.76,0.00022065,2]
[309961882,1704237757118,1490.41961283,0.00021661,2]
[309961883,1704237757877,1490.41961283,0.00021919,2]
[309961884,1704237758403,1490.41961283,0.00022354,2]
[309961885,1704237806429,1127.26,0.00022108,2]
[309961886,1704237832836,645.28,0.00021951,2]
[309961887,1704237843817,822.74,0.00022021,2]
[309961888,1704237849998,314.93,0.0002198,2]
[309961889,1704237858783,157.17,0.00022242,2]
[309961890,1704237859292,157.17,0.00022325,2]
[309961891,1704237859878,157.17,0.00022408,2]
[309961892,1704237859951,157.17,0.0002249,2]
[309961893,1704237861886,500.0,0.00022076,2]
[309961894,1704237881462,1490.41961283,0.00022288,2]
[309961895,1704237899034,150.71,0.0002189,2]
[309961896,1704237922756,23900.0,0.0002189,2]
[309961897,1704237925697,250.0,0.00021907,2]
[309961898,1704237925784,166.492914,0.00022466,2]
[309961905,1704237943708,170.78,0.00021907,2]
[309961906,1704238001218,155.65,0.00022149,2]
[309961919,1704238067969,641.45,0.00020026,2]
[309961920,1704238068380,641.45,0.0002229,2]
[309961923,1704238183429,160.99529057,0.00022473,2]
[309961928,1704238231378,-150.0,0.00022548,2]
[309961929,1704238231388,-595.4364,0.00022569,2]
[309961930,1704238231398,-150.0,0.00022571,2]
[309961931,1704238231407,-12357.57062834,0.00022572,2]
[309961932,1704238231417,-2340.91988587,0.00022573,2]
[309961933,1704238231427,-157.17,0.00022573,2]
[309961934,1704238231436,-1490.41961283,0.00022594,2]
[309961935,1704238231446,-483.68814411,0.000226,2]
[309961936,1704238231455,-150.0,0.00022617,2]
[309961937,1704238231475,-157.17,0.00022656,2]
[309961938,1704238231487,-851.11,0.00022656,2]
[309961939,1704238231498,-3412.72,0.00022656,2]
[309961940,1704238231508,-330.30431571,0.00022669,2]
[309961941,1704238231518,-4181.28,0.00022669,2]
[309961942,1704238231527,-194.78,0.00022677,2]
[309961943,1704238231537,-160.99529057,0.00022687,2]
[309961944,1704238231547,-157.17,0.00022739,2]
[309961945,1704238231557,-499.99,0.00022798,2]
[309961946,1704238231566,-250.3323,0.000228,2]
[309961947,1704238231576,-194.00533795,0.000228,2]
[309961948,1704238231586,-157.17,0.00022822,2]
[309961949,1704238231596,-999.99,0.00022847,2]
[309961950,1704238231607,-194.00533793,0.0002285,2]
[309961951,1704238231618,-194.6973,0.0002289,2]
[309961952,1704238231629,-646.0144896,0.00022898,2]
[309961953,1704238231640,-4255.71149734,0.00022898,2]
[309961954,1704238231650,-5671.48072838,0.00022899,2]
[309961955,1704238231662,-2291.09946687,0.000229,2]
[309961956,1704238231671,-850.4073,0.000229,2]
[309961957,1704238231684,-39699.26944595,0.000229,2]
[309961958,1704238231699,-35695.71965433,0.000229,2]
[309961959,1704238231712,-593.86932911,0.000229,2]
[309961960,1704238231729,-13324.75422313,0.000229,2]
[309961961,1704238231767,-3549.1442294,0.000229,2]
[309961963,1704238231782,-288.35999134,0.000229,2]
[309961965,1704238231795,-786.33170833,0.000229,2]
[309961970,1704238231817,-11403.85151841,0.000229,2]
[309961973,1704238231826,-168.01053157,0.000229,2]
[309961976,1704238231836,-269.28283734,0.000229,2]
[309961979,1704238231845,-318.59938792,0.000229,2]
[309961981,1704238231854,-160.99529057,0.000229,2]
[309961984,1704238231864,-194.00533793,0.000229,2]
[309961987,1704238231874,-157.17,0.00022904,2]
[309961989,1704238231883,-155.65,0.00022982,2]
[309961992,1704238231893,-431.23,0.00022986,2]
[309961995,1704238231902,-157.17,0.00022987,2]
[309961998,1704238231912,-155.38981305,0.0002299,2]
[309962000,1704238231921,-155.38981305,0.0002299,2]
[309962003,1704238231932,-155.38981305,0.0002299,2]
[309962007,1704238231941,-1770.0530811,0.00022998,2]
[309962010,1704238231951,-2687.32,0.00022998,2]
[309962012,1704238231960,-2261.28607393,0.00022998,2]
[309962015,1704238231970,-3162.33309311,0.00022999,2]
[309962018,1704238231979,-303.46097759,0.00022999,2]
[309962021,1704238231989,-1446.91385758,0.00022999,2]
[309962023,1704238231998,-155.07519745,0.00022999,2]
[309962026,1704238232007,-822.74,0.00022999,2]
[309962029,1704238232016,-680613.52336807,0.00023,2]
[309962032,1704238232029,-1205.02646746,0.00023,2]
[309962035,1704238232045,-766.07929493,0.00023,2]
[309962037,1704238232057,-263.22815447,0.00023,2]
[309962044,1704238232108,-601.16020083,0.00023,2]
[309962049,1704238233898,211.0,0.00022494,2]
[309962056,1704238237434,-274.56474054,0.00022656,2]
[309962057,1704238237549,-225.42525946,0.00022656,2]
[309962058,1704238237558,-57252.38831149,0.00023,2]
[309962059,1704238237570,-635.96349285,0.00023,2]
[309962060,1704238237581,-594.46482529,0.00023,2]
[309962061,1704238237593,-342.79972744,0.00023,2]
[309962062,1704238237605,-9346.10379655,0.00023,2]
[309962063,1704238237616,-670.4068979,0.00023,2]
[309962064,1704238237628,-462.38488725,0.00023,2]
[309962065,1704238237640,-355.74370788,0.00023,2]
[309962066,1704238237652,-5090.14194209,0.00023,2]
[309962067,1704238237672,-504.88691779,0.00023,2]
[309962068,1704238237687,-6420.88416689,0.00023,2]
[309962069,1704238237726,-1315.35,0.00023,2]
[309962070,1704238237738,-785.44914221,0.00023,2]
[309962071,1704238237768,-839681.65945841,0.00023,2]
[309962072,1704238237782,-269740.58611059,0.00023,2]
[309962073,1704238237793,-2037.53492324,0.00023,2]
[309962083,1704238238290,-942.17708541,0.00023,2]
[309962084,1704238238301,-790.11376203,0.00023,2]
[309962085,1704238238318,-12500.0003,0.00023,2]
[309962091,1704238239940,-1301.79066834,0.00023,2]
[309962092,1704238239951,-540.53888694,0.00023,2]
[309962093,1704238239997,-1467.9667264,0.00023,2]
[309962094,1704238240012,-16973.87338917,0.00023,2]
[309962095,1704238240803,-257.03352291,0.00023,2]
[309962096,1704238240818,-507.76928861,0.00023,2]
[309962097,1704238240830,-6647.17974226,0.00023,2]
[309962098,1704238240843,-5862.09326461,0.00023,2]
[309962099,1704238240857,-8943.78386462,0.00023,2]
[309962100,1704238240870,-9077.54866152,0.00023,2]
[309962101,1704238240883,-8866.78254343,0.00023,2]
[309962126,1704238242371,-6810.90330443,0.00023,2]
[309962129,1704238242384,-8566.56428725,0.00023,2]
[309962131,1704238242397,-11618.81790703,0.00023,2]
[309962133,1704238242426,-13107.55720849,0.00023,2]
[309962134,1704238242439,-2929.77559283,0.00023,2]
[309962135,1704238242451,-2302.80085521,0.00023,2]
[309962136,1704238242482,-735.6,0.00023,2]
[309962137,1704238242537,-416.41919615,0.00023,2]
[309962138,1704238242550,-250.161,0.00023,2]
[309962139,1704238242648,-1101.24272311,0.00023,2]
[309962140,1704238242661,-327.575402,0.00023,2]
[309962141,1704238242673,-397.256,0.00023,2]
[309962142,1704238242686,-2172.2,0.00023,2]
[309962143,1704238242704,-254.89014544,0.00023,2]
[309962144,1704238242716,-696.05985471,0.00023,2]
[309962168,1704238245434,-815.64645202,0.0002264,2]
[309962187,1704238245523,-412.5566358,0.0002264,2]
[309962190,1704238245534,-4096.9568197,0.00023,2]
[309962195,1704238245555,-7465.0,0.00023,2]
[309962215,1704238245649,-303.7149968,0.00023,2]
[309962218,1704238245660,-565.92500001,0.00023,2]
[309962223,1704238245673,-7680.999995,0.00023,2]
[309962227,1704238245705,-675.84107227,0.00023,2]
[309962296,1704238256219,2815.52440937,0.00022079,2]
[309962297,1704238284158,151.06375353,0.00022,2]
[309962298,1704238365973,820.20980642,0.00022485,2]
[309962299,1704238367058,1153.20308783,0.00022467,2]
[309962300,1704238606365,577.3,0.00020504,2]
[309962301,1704238752380,209.84,0.00022423,2]
[309962302,1704238788396,150.71,0.00022415,2]
[309962303,1704238804319,516.23,0.00022052,2]
[309962305,1704238879030,157.46,0.00022022,2]
[309962307,1704238947856,23900.0,0.00022032,2]
[309962308,1704239091999,548.43,0.00019956,2]
[309962309,1704239092240,548.43,0.0002222,2]
[309962311,1704239255335,587.01,0.00021869,2]
[309962312,1704239258502,154.9,0.0002204,2]
[309962313,1704239258723,154.9,0.00022116,2]
[309962314,1704239258955,154.9,0.00022193,2]
[309962315,1704239259144,154.9,0.00022269,2]
[309962316,1704239259368,154.9,0.00022346,2]
[309962317,1704239259582,154.9,0.00022422,2]
[309962318,1704239259807,154.9,0.00022499,2]
[309962319,1704239308569,157.46,0.00021875,2]
[309962357,1704239412603,156.45402908,0.00022476,2]
[309962358,1704239421832,799.71,0.00021861,2]
[309962375,1704239433382,-150.0,0.00022519,2]
[309962376,1704239433393,-217.83886816,0.0002252,2]
[309962377,1704239433405,-2196.95545076,0.0002252,2]
[309962378,1704239433439,-4497.1,0.0002252,2]
[309962379,1704239433453,-5445.67630942,0.0002252,2]
[309962380,1704239433463,-154.9,0.00022576,2]
[309962381,1704239433473,-154.9,0.00022652,2]
[309962382,1704239433484,-156.45402908,0.00022688,2]
[309962383,1704239433494,-150.0,0.00022719,2]
[309962384,1704239433505,-150.0,0.00022726,2]
[309962385,1704239433515,-150.0,0.00022728,2]
[309962386,1704239433525,-154.9,0.00022729,2]
[309962387,1704239433535,-1500.0,0.00022735,2]
[309962388,1704239433546,-150.0,0.00022739,2]
[309962389,1704239433556,-150.0,0.00022739,2]
[309962390,1704239433566,-150.0,0.00022742,2]
[309962391,1704239433576,-150.0,0.00022747,2]
[309962392,1704239433586,-1686.77,0.00022747,2]
[309962393,1704239433595,-150.0,0.00022752,2]
[309962394,1704239433605,-150.0,0.00022753,2]
[309962395,1704239433615,-150.0,0.00022759,2]
[309962396,1704239433625,-300.0,0.00022768,2]
[309962397,1704239433635,-150.0,0.00022769,2]
[309962398,1704239433645,-150.0,0.00022775,2]
[309962399,1704239433655,-150.0,0.00022777,2]
[309962400,1704239433665,-150.0,0.00022777,2]
[309962401,1704239433675,-150.0,0.0002278,2]
[309962402,1704239433685,-150.0,0.00022782,2]
[309962404,1704239433696,-150.0,0.00022783,2]
[309962406,1704239433706,-150.0,0.00022786,2]
[309962408,1704239433715,-150.0,0.00022788,2]
[309962410,1704239433725,-150.0,0.0002279,2]
[309962412,1704239433734,-150.0,0.00022797,2]
[309962414,1704239433744,-317.21700026,0.00022798,2]
[309962417,1704239433754,-300.0,0.00022798,2]
[309962420,1704239433764,-150.0,0.00022799,2]
[309962423,1704239433775,-1500.0,0.000228,2]
[309962425,1704239433785,-150.0,0.00022803,2]
[309962427,1704239433795,-807.7472,0.00022804,2]
[309962430,1704239433805,-154.9,0.00022805,2]
[309962432,1704239433820,-150.0,0.00022807,2]
[309962434,1704239433830,-150.0,0.0002281,2]
[309962436,1704239433840,-150.0,0.00022814,2]
[309962438,1704239433849,-150.0,0.00022815,2]
[309962440,1704239433862,-150.0,0.00022815,2]
[309962443,1704239433871,-150.0,0.00022816,2]
[309962445,1704239433881,-150.0,0.00022816,2]
[309962447,1704239433895,-1500.0,0.00022816,2]
[309962449,1704239433904,-1500.0,0.00022817,2]
[309962451,1704239433914,-150.0,0.00022819,2]
[309962453,1704239433923,-150.0,0.00022824,2]
[309962455,1704239433933,-150.0,0.00022825,2]
[309962457,1704239433943,-150.0,0.00022826,2]
[309962459,1704239433952,-150.0,0.00022826,2]
[309962461,1704239433961,-150.0,0.00022828,2]
[309962463,1704239433971,-150.0,0.00022833,2]
[309962465,1704239433980,-150.0,0.00022837,2]
[309962467,1704239433990,-150.0,0.00022837,2]
[309962469,1704239434000,-799.71,0.0002284,2]
[309962471,1704239434010,-150.0,0.0002284,2]
[309962474,1704239434021,-150.0,0.00022841,2]
[309962476,1704239434031,-150.0,0.00022846,2]
[309962478,1704239434040,-150.0,0.00022848,2]
[309962480,1704239434050,-150.0,0.0002285,2]
[309962482,1704239434061,-150.0,0.00022852,2]
[309962484,1704239434072,-150.0,0.00022853,2]
[309962486,1704239434082,-150.0,0.00022854,2]
[309962488,1704239434091,-150.0,0.00022858,2]
[309962490,1704239434101,-301.12222981,0.00022861,2]
[309962492,1704239434110,-150.0,0.00022862,2]
[309962494,1704239434120,-150.0,0.00022863,2]
[309962496,1704239434130,-150.0,0.00022867,2]
[309962498,1704239434139,-150.0,0.00022869,2]
[309962500,1704239434149,-150.0,0.0002287,2]
[309962502,1704239434158,-150.0,0.00022873,2]
[309962505,1704239434169,-150.0,0.00022877,2]
[309962507,1704239434178,-150.0,0.00022881,2]
[309962509,1704239434188,-154.9,0.00022882,2]
[309962511,1704239434199,-150.0,0.00022882,2]
[309962513,1704239434211,-150.0,0.00022882,2]
[309962515,1704239434220,-150.0,0.00022882,2]
[309962517,1704239434230,-150.0,0.00022893,2]
[309962519,1704239434239,-150.0,0.00022896,2]
[309962521,1704239434250,-150.0,0.00022897,2]
[309962523,1704239434260,-150.0,0.00022897,2]
[309962525,1704239434270,-436.3929,0.000229,2]
[309962527,1704239434279,-2832.58569043,0.000229,2]
[309962529,1704239434289,-515.4724,0.000229,2]
[309962531,1704239434299,-150.0,0.000229,2]
[309962533,1704239434309,-165.84092523,0.000229,2]
[309962535,1704239434319,-1000.0,0.000229,2]
[309962537,1704239434329,-193.32810436,0.000229,2]
[309962539,1704239434340,-12678.08,0.000229,2]
[309962541,1704239434349,-456.18745734,0.000229,2]
[309962544,1704239434359,-1067.9006,0.000229,2]
[309962546,1704239434370,-212.39959194,0.000229,2]
[309962548,1704239434379,-179.52189156,0.000229,2]
[309962550,1704239434390,-156.45402908,0.000229,2]
[309962552,1704239434399,-177.02216324,0.000229,2]
[309962554,1704239434410,-2500.0,0.000229,2]
[309962556,1704239434424,-150.0,0.00022903,2]
[309962558,1704239434434,-150.0,0.00022904,2]
[309962560,1704239434445,-300.0,0.00022905,2]
[309962562,1704239434455,-300.0,0.00022907,2]
[309962564,1704239434465,-150.0,0.00022908,2]
[309962566,1704239434475,-150.0,0.00022909,2]
[309962567,1704239434484,-150.0,0.0002291,2]
[309962568,1704239434495,-150.0,0.00022916,2]
[309962569,1704239434505,-150.0,0.00022916,2]
[309962570,1704239434516,-150.0,0.00022916,2]
[309962571,1704239434525,-150.0,0.00022917,2]
[309962572,1704239434537,-150.0,0.00022917,2]
[309962573,1704239434547,-150.0,0.00022917,2]
[309962574,1704239434557,-150.0,0.0002292,2]
[309962575,1704239434567,-150.0,0.00022924,2]
[309962576,1704239434577,-150.0,0.00022925,2]
[309962577,1704239434587,-1500.0,0.00022926,2]
[309962578,1704239434597,-150.0,0.00022928,2]
[309962579,1704239434607,-150.0,0.00022928,2]
[309962580,1704239434617,-150.0,0.00022929,2]
[309962581,1704239434627,-150.0,0.0002294,2]
[309962582,1704239434637,-150.0,0.00022941,2]
[309962583,1704239434647,-150.0,0.00022942,2]
[309962584,1704239434657,-150.0,0.00022942,2]
[309962585,1704239434667,-1500.0,0.00022952,2]
[309962586,1704239434677,-150.0,0.00022954,2]
[309962587,1704239434687,-150.0,0.00022955,2]
[309962588,1704239434699,-150.0,0.00022955,2]
[309962589,1704239434709,-154.9,0.00022958,2]
[309962590,1704239434718,-150.0,0.00022961,2]
[309962591,1704239434727,-156.47,0.00022962,2]
[309962592,1704239434737,-150.0,0.00022966,2]
[309962593,1704239434746,-263.54231009,0.00022967,2]
[309962594,1704239434756,-150.0,0.00022969,2]
[309962595,1704239434767,-150.0,0.00022971,2]
[309962596,1704239434777,-150.0,0.00022973,2]
[309962597,1704239434787,-150.0,0.00022975,2]
[309962598,1704239434797,-150.0,0.00022977,2]
[309962599,1704239434807,-150.0,0.0002298,2]
[309962600,1704239434817,-150.0,0.00022982,2]
[309962601,1704239434827,-150.0,0.00022982,2]
[309962602,1704239434837,-1500.0,0.00022984,2]
[309962603,1704239434847,-178.30777722,0.0002299,2]
[309962604,1704239434857,-1969.04870223,0.00022998,2]
[309962605,1704239434867,-241.52141626,0.00022998,2]
[309962606,1704239434876,-3359.09628517,0.00022998,2]
[309962607,1704239434892,-5507.64959913,0.00022998,2]
[309962608,1704239434902,-7055.5052627,0.00022999,2]
[309962609,1704239434912,-1198.0595198,0.00022999,2]
[309962610,1704239434921,-699.5609749,0.00022999,2]
[309962611,1704239434931,-2927.51927162,0.00022999,2]
[309962612,1704239434940,-1040.53965605,0.00022999,2]
[309962613,1704239434951,-249.06716055,0.00022999,2]
[309962614,1704239434972,-2515.13428224,0.00022999,2]
[309962615,1704239435026,-705.54640887,0.00022999,2]
[309962616,1704239435036,-216.6433605,0.00022999,4]
[309962617,1704239435058,-283.3566395,0.00022999,4]
[309962618,1704239435068,-500.0,0.00022999,4]
[309962619,1704239435078,-500.0,0.00022999,4]
[309962620,1704239435088,-500.0,0.00022999,4]
[309962621,1704239435098,-500.0,0.00022999,4]
[309962622,1704239435108,-500.0,0.00022999,4]
[309962623,1704239435118,-500.0,0.00022999,4]
[309962624,1704239435128,-500.0,0.00022999,4]
[309962625,1704239435138,-500.0,0.00022999,4]
[309962626,1704239435149,-500.0,0.00022999,4]
[309962627,1704239435159,-500.0,0.00022999,4]
[309962628,1704239435169,-237.06425748,0.00022999,4]
[309962629,1704239435178,-500.0,0.00022999,4]
[309962630,1704239435188,-500.0,0.00022999,4]
[309962631,1704239435198,-500.0,0.00022999,4]
[309962632,1704239435208,-500.0,0.00022999,4]
[309962633,1704239435218,-500.0,0.00022999,4]
[309962634,1704239435227,-500.0,0.00022999,4]
[309962635,1704239435237,-500.0,0.00022999,4]
[309962636,1704239435247,-500.0,0.00022999,4]
[309962637,1704239435257,-499.99999999,0.00022999,4]
[309962638,1704239435267,-154599.55274747,0.00023,2]
[309962639,1704239435281,-10660.41565737,0.00023,2]
[309962640,1704239435293,-250.19404164,0.00023,2]
[309962650,1704239437928,-8953.65797753,0.00023,2]
[309962651,1704239437940,-10414.45117126,0.00023,2]
[309962652,1704239437953,-17996.82427173,0.00023,2]
[309962663,1704239438187,-11576.65793159,0.00023,2]
[309962666,1704239438210,-585.54437999,0.00023,2]
[309962669,1704239438222,-33668.08696605,0.00023,2]
[309962671,1704239438235,-484.09055013,0.00023,2]
[309962673,1704239438252,-19223.75586557,0.00023,2]
[309962676,1704239438286,-839681.65945841,0.00023,2]
[309962677,1704239438299,-269740.58611059,0.00023,2]
[309962689,1704239440185,-611.06192994,0.000229,2]
[309962691,1704239440196,-3639.80775105,0.00023,2]
[309962693,1704239440208,-1750.53869379,0.00023,2]
[309962695,1704239440219,-37538.0,0.00023,2]
[309962699,1704239440250,-359.26507755,0.00023,2]
[309962702,1704239440262,-396.26078023,0.00023,2]
[309962746,1704239441064,-6428.5073163,0.00023,2]
[309962747,1704239441076,-12386.0209,0.00023,2]
[309962748,1704239441091,-404.6004,0.00023,2]
[309962749,1704239441127,-11811.60253556,0.00023,2]
[309962767,1704239442809,-906340.33792743,0.00023,2]
[309962768,1704239442921,-30134.35634287,0.00023,2]
[309962790,1704239445732,-1064.063,0.00023,2]
[309962792,1704239473934,2956.6961,0.0002242,2]
[309962794,1704239649123,624.77,0.0002,2]
[309962795,1704239705294,-269.0439706,0.00022661,2]
[309962796,1704239705315,-211.0,0.00022662,2]
[309962797,1704239705334,-1797.0,0.0002277,2]
[309962798,1704239705352,-150.0,0.00022899,2]
[309962799,1704239705369,-2665.9560294,0.000229,2]